Cogmind - Beta 16 @@@ ROGUE MODE // 2025.11.09 @ 12:59:19 Player: delto Result: Destroyed by H-71 Marshal with Heavy Mass Driver Performance ------------- Evolutions (6) 3000 Regions Visited (14) 2800 Robots Destroyed (33) 165 Value Destroyed (811) 811 Prototype IDs (2) 40 Alien Tech Used (0) 0 Bonus (891) 891 TOTAL SCORE: 7707 Bonus ------- Follower Combat Kills 891 Cogmind --------- Core Integrity 0/1150 Matter 290/300 Energy 90/100 System Corruption 0% Temperature Cool (2) Movement Flying (40) Location -4/Factory Parts ------- > --- POWER (2) -------- (None) > --- PROPULSION (6) --- Impulse Thruster > --- UTILITY (8) ------ Enhanced Optical Array Advanced Terrain Scan Processor Component Analysis Suite Improved System Guard > --- WEAPON (3) ------- (None) > --- INVENTORY (5) ---- Light Antimatter Reactor Light Antimatter Reactor Advanced Matter Compressor (301) Advanced Terrain Scan Processor KE Penetrator Peak State ------------ > --- POWER ------------ Antimatter Reactor Reinforced Quantum Reactor > --- PROPULSION ------- Carbon-fiber Leg Flexi-carbon Leg Flexi-carbon Leg Flexi-carbon Leg Heavy Shield Leg > --- UTILITY ---------- Medium Storage Unit Advanced Matter Compressor Improved Trap Scanner Enhanced Optical Array Advanced Terrain Scanner Advanced Terrain Scan Processor Improved Salvage Targeting Computer Makeshift Utility Shielding > --- WEAPON ----------- KE Penetrator Hypervelocity Railgun Magnetic Acceleration Cannon > --- INVENTORY -------- Neutrino Core Light Antimatter Reactor Improved Trap Scanner Advanced Terrain Scan Processor Improved Reaction Control System Component Analysis Suite Improved System Restoration Module Improved Recalibrator Heavy Battle Rifle Improved Plasma Cutter [Rating: 112] Favorites ----------- Power Reinforced Quantum Reactor Engine Ion Engine Power Core Neutrino Core Reactor Reinforced Quantum Reactor Propulsion Flexi-carbon Leg Treads Light Treads Leg Flexi-carbon Leg Wheel Centrium Wheel Hover Unit Combat Airjet Flight Unit Improved Flight Unit Utility Advanced Terrain Scan Processor Device Advanced Terrain Scanner Storage Advanced Matter Compressor Processor Advanced Terrain Scan Processor Hackware System Shield Protection Makeshift Utility Shielding Weapon Hypervelocity Railgun Energy Gun Medium Laser Ballistic Gun Hypervelocity Railgun Ballistic Cannon Magnetic Acceleration Cannon Launcher Grenade Launcher Special Weapon Mining Laser Impact Weapon Flail Slashing Weapon Ripper Build | -11 -10 -9 -9 -8 -7 -6 -6 -6 -5 -5 -5 -5 -5 -4 ------- Run | Yrd Mat Mat Sto Mat Fac Fac Low Low Fac Was Fac Upp Upp Fac Slots Evolved 12 | . . 2 . 2 2 2 . . 2 . . . . 2 Power 1 | . . . . . . . . . 1 . . . . . Propulsion 4 | . . . . 1 1 1 . . 1 . . . . . Utility 6 | . . 2 . 1 1 1 . . . . . . . 1 Weapon 1 | . . . . . . . . . . . . . . 1 Parts Attached 95 | 8 2 14 6 9 10 4 4 . 3 6 6 9 2 12 Power 14 | 1 . 1 1 2 2 1 . . . 2 1 . . 3 Engine 7 | 1 . 1 1 2 1 1 . . . . . . . . Core 3 | . . . . . 1 . . . . . 1 . . 1 Reactor 4 | . . . . . . . . . . 2 . . . 2 Propulsion 29 | 2 . 4 2 1 6 1 . . . 1 4 2 1 5 Treads 3 | 2 . 1 . . . . . . . . . . . . Leg 8 | . . . . . . . . . . 1 1 2 1 3 Wheel 1 | . . . . . . . . . . . . . . 1 Hover 10 | . . . . . 6 1 . . . . 3 . . . Flight 7 | . . 3 2 1 . . . . . . . . . 1 Utility 36 | 2 1 5 1 5 2 2 3 . 3 2 1 6 1 2 Device 14 | 1 . 2 . 3 . . . . 1 2 1 3 . 1 Storage 5 | 1 1 . . . . . 1 . . . . 1 1 . Processor 12 | . . 2 1 1 2 1 1 . 2 . . 1 . 1 Hackware 1 | . . . . 1 . . . . . . . . . . Protection 4 | . . 1 . . . 1 1 . . . . 1 . . Artifact . | . . . . . . . . . . . . . . . Weapon 16 | 3 1 4 2 1 . . 1 . . 1 . 1 . 2 Energy Gun 1 | 1 . . . . . . . . . . . . . . Energy Cannon . | . . . . . . . . . . . . . . . Ballistic Gun 8 | 1 1 4 . . . . . . . 1 . . . 1 Ballistic Cannon 1 | . . . . . . . . . . . . 1 . . Launcher 1 | . . . . 1 . . . . . . . . . . Special Weapon 2 | 1 . . . . . . . . . . . . . 1 Impact Weapon 2 | . . . 2 . . . . . . . . . . . Slashing Weapon 1 | . . . . . . . 1 . . . . . . . Piercing Weapon . | . . . . . . . . . . . . . . . Special Melee Weapon . | . . . . . . . . . . . . . . . Unidentified Prototypes 1 | . . . 1 . . . . . . . . . . . Corrupted Parts 1 | . . . . . . . . . . . . . . 1 System Corruption 10 | . . . . . . . . . . . . . . 10 Parts Lost 56 | . . 5 12 . 12 1 4 . 1 1 . 1 . 19 Power 11 | . . 1 2 . 2 . 2 . . . . . . 4 Propulsion 19 | . . 2 4 . 5 1 . . . . . . . 7 Utility 16 | . . 2 2 . 4 . 2 . . 1 . 1 . 4 Weapon 10 | . . . 4 . 1 . . . 1 . . . . 4 Highest Loss Streak 19 | . . 5 9 . 11 1 2 . 1 1 . 1 . 19 To Critical Strikes 1 | . . . . . 1 . . . . . . . . . Average Backups 5 | 2 6 7 3 2 4 4 4 5 4 3 4 4 6 7 Power . | . 1 . . . . . . . . . 1 1 1 1 Propulsion . | . . . 1 . 1 . . . . . . . . . Utility 3 | . 3 3 . . 2 3 3 4 3 3 3 3 4 4 Weapon . | 1 2 2 . 1 . . 1 1 1 . . . . . Tool/Special . | . . . . . . . . . . . . . . . Unused Backups 25 | . 1 4 . . 4 3 . . 1 2 . 1 1 8 Power 3 | . . . . . . . . . . . . 1 . 2 Propulsion 2 | . . . . . 2 . . . . . . . . . Utility 13 | . . 3 . . 1 2 . . 1 1 . . 1 4 Weapon 7 | . 1 1 . . 1 1 . . . 1 . . . 2 Tool/Special . | . . . . . . . . . . . . . . . Average Slot Usage (%) 76 | . 100 96 81 69 83 47 59 53 54 59 71 81 89 68 Engine 3 | . 14 11 8 4 6 6 1 . . . . . . . Reactor 4 | . . . . . . . . . . 6 10 11 11 5 Treads 3 | . 28 14 . . . . . . . . . . . . Leg 7 | . . . . . . . . . . 3 6 16 24 15 Hover 2 | . . . . . 11 6 6 6 5 1 . . . . Flight 1 | . . 4 19 12 7 . . . . . . . . . Device 12 | . 14 19 15 12 21 6 6 6 7 8 11 13 11 9 Storage 5 | . 14 8 . . . . 5 6 5 5 5 4 7 7 Processor 18 | . . 15 23 23 21 17 23 20 22 23 23 20 17 14 Protection 1 | . . . . . . 3 3 . . . . . 3 4 Ballistic Gun 5 | . 18 20 11 . . . . . . 1 5 5 5 5 Ballistic Cannon 1 | . . . . . . . . . . . . 1 5 2 Impact Weapon 2 | . . . 1 10 7 6 6 6 5 . . . . . Slashing Weapon 2 | . . . . . . . 3 6 5 5 5 3 . . Peak Build Rating 112 | 9 10 12 11 24 35 26 34 27 39 79 94 98 101 112 Average Rating 52 | 5 9 10 9 17 28 21 30 27 34 62 79 91 98 77 On Entrance 36 | . 9 10 10 10 24 15 25 27 27 37 79 82 97 101 Avg Prop Armor Cover (%) 10 | . . . . . 10 . . . . . . . . . Naked Turns . | . . . . . . . . . . . . . . . Heaviest Build 84 | 14 19 23 8 15 16 15 16 6 7 59 59 69 78 84 Greatest Support 135 | 40 40 40 8 16 42 18 18 18 18 60 80 115 135 135 Greatest Overweight (x) 12 | 1 . 2 . . 1 . . . . . 3 . . 12 Average Overweight (x) . | . . . . . . . . . . . . . . . Largest Inventory Capacity 10 | 8 10 10 5 5 5 5 5 5 5 5 5 5 10 10 Average Capacity 6 | 7 8 8 5 5 5 5 5 5 5 5 5 5 7 8 Most Carried 10 | 4 10 10 5 5 5 5 5 5 5 5 5 5 9 10 Average Carried 5 | 2 6 7 3 3 4 4 4 5 4 3 4 4 6 7 Final Capacity 10 | 8 10 5 5 5 5 5 5 5 5 5 5 5 10 5 Final Carried 10 | 4 10 5 . 5 2 5 5 5 5 4 5 5 9 5 Class Distribution -------------------- 29% | Mutant 24% | Assassin 20% | Scavenger-Skirmisher 14% | Scout 8% | Gladiator 3% | Skirmisher Dominant Class ---------------- Mutant | -10/Materials Skirmisher | -9/Materials Scout | -9/Storage Scout | -8/Materials Scout | -7/Factory Mutant | -6/Factory Gladiator | -6/Lower Caves Mutant | -6/Lower Caves Scout | -5/Factory Assassin | -5/Waste Assassin | -5/Factory Assassin | -5/Upper Caves Scavenger-Skirmisher | -5/Upper Caves Mutant | -4/Factory Resources | -11 -10 -9 -9 -8 -7 -6 -6 -6 -5 -5 -5 -5 -5 -4 ----------- Run | Yrd Mat Mat Sto Mat Fac Fac Low Low Fac Was Fac Upp Upp Fac Matter Collected 1788 | 328 98 208 66 . 55 . 260 . . 80 250 365 78 . Remotely . | . . . . . . . . . . . . . . . Salvage Created 975 | 132 187 202 93 . 69 . . . . . . 51 83 158 Parts 68 | 8 21 13 4 . 5 . . . . . . 3 3 11 Haulers Intercepted . | . . . . . . . . . . . . . . . Recyclers Shooed 1 | 1 . . . . . . . . . . . . . . Parts Field Recycled . | . . . . . . . . . . . . . . . Retrieved Matter . | . . . . . . . . . . . . . . . Parts Self-Destructed 29 | . . . . . . . 3 . . . . 24 2 . Prevented 2 | . . . . . . . 1 . . . . 1 . . Parts Restored 1 | . . . . . . . . . . 1 . . . . Broken 1 | . . . . . . . . . . 1 . . . . Kills | -11 -10 -9 -9 -8 -7 -6 -6 -6 -5 -5 -5 -5 -5 -4 ------- Run | Yrd Mat Mat Sto Mat Fac Fac Low Low Fac Was Fac Upp Upp Fac Combat Hostiles Destroyed 26 | . 7 6 5 . 4 . . . . . . 1 1 2 Melee 3 | . . . . . 3 . . . . . . . . . Guns 19 | . 7 6 4 . . . . . . . . . 1 1 Cannons 2 | . . . 1 . . . . . . . . 1 . . AOE 2 | . . . . . 1 . . . . . . . . 1 Classes Destroyed 10 | 2 4 1 . . . . . . . . . 1 . 2 Worker 1 | . 1 . . . . . . . . . . . . . Builder 1 | . 1 . . . . . . . . . . . . . Tunneler 3 | 3 . . . . . . . . . . . . . . Recycler 1 | 1 . . . . . . . . . . . . . . Watcher 1 | . 1 . . . . . . . . . . . . . Swarmer 18 | . 7 3 4 . 4 . . . . . . . . . Grunt 1 | . . . . . . . . . . . . . . 1 Duelist 1 | . . . . . . . . . . . . . . 1 Sentry 5 | . . 3 1 . . . . . . . . . 1 . Hunter 1 | . . . . . . . . . . . . 1 . . Best Kill Streak 7 | 1 7 5 3 . 2 . . . . . . 1 1 1 Combat Bots Only 7 | . 7 5 3 . 2 . . . . . . 1 1 1 Max Kills in Single Turn 2 | 1 2 1 2 . 1 . . . . . . 1 1 1 Gunslinging 1 | . . . 1 . . . . . . . . . . . Exploded 1 | . . . . . 1 . . . . . . . . 1 Melee 1 | . . . . . 1 . . . . . . . . . Uniques/NPCs Destroyed . | . . . . . . . . . . . . . . . Combat | -11 -10 -9 -9 -8 -7 -6 -6 -6 -5 -5 -5 -5 -5 -4 -------- Run | Yrd Mat Mat Sto Mat Fac Fac Low Low Fac Was Fac Upp Upp Fac Hostile Shots Fired 610 | . 58 78 88 40 73 14 33 3 14 . . 40 8 161 Missed 217 | . 17 24 42 21 25 7 11 1 7 . . 13 3 46 Hits 393 | . 41 54 46 19 48 7 22 2 7 . . 27 5 115 Melee 17 | . . . . . . . . . . . . 1 . 16 Projectile 376 | . 41 54 46 19 48 7 22 2 7 . . 26 5 99 Critical Strikes 18 | . 1 . . 1 1 . 2 . . . . 3 . 10 Actively Blocked 1 | . . . . . . . . . . . . . . 1 Damage Taken 6942 | . 336 668 466 267 723 117 417 . 102 59 24 505 119 3139 Core 2158 | . 43 98 129 98 225 66 77 . 75 17 . 88 25 1217 Absorbed by Shields 42 | . . . . . . . . . . . . . . 42 Redirected to Shielding 46 | . . . . . . . . . . . . . . 46 Regen/Repaired (Parts) 801 | . . . . . . . . . . 440 24 337 . . Core Remaining (%) 76 | 100 82 . 43 82 67 . . 83 . . . . 79 . Volleys Fired 85 | 16 27 12 11 . 1 . . . . . . 6 4 8 Largest 3 | 2 2 2 2 . 1 . . . . . . 2 2 3 Hottest 120 | 70 100 46 120 . 30 . . . . . . 84 84 117 Shots Fired 124 | 23 32 24 14 . 1 . . . . . . 10 8 12 Gun 108 | 23 30 24 13 . . . . . . . . 6 4 8 Cannon 9 | . . . . . . . . . . . . 4 4 1 Launcher 1 | . . . . . 1 . . . . . . . . . Special 6 | . 2 . 1 . . . . . . . . . . 3 Kinetic 110 | 16 30 24 13 . . . . . . . . 10 8 9 Thermal 13 | 7 2 . 1 . . . . . . . . . . 3 Explosive 1 | . . . . . 1 . . . . . . . . . Electromagnetic . | . . . . . . . . . . . . . . . Robot Hit Streak 6 | 3 6 6 3 . . . . . . . . 6 6 6 Robot Miss Streak 8 | 3 5 8 2 . . . . . . . . 2 1 2 Penetration Max . | . . . . . . . . . . . . . . . Secondary Targets 1 | . . . 1 . . . . . . . . . . . Max Gunslinging Chain 1 | . . . 1 . . . . . . . . . . . Shots Hit Robots 76 | 12 13 14 9 . 8 . . . . . . 7 6 7 Core Hits 47 | 5 11 9 8 . 5 . . . . . . 4 1 4 Critical Kills 3 | . 1 . . . . . . . . . . . 1 1 Critical Parts Destroyed 4 | . 1 . . . 1 . . . . . . . 1 1 Critical Strikes 7 | . 2 . . . 1 . . . . . . . 2 2 Destroy 6 | . 2 . . . . . . . . . . . 2 2 Smash 1 | . . . . . 1 . . . . . . . . . Melee Attacks 16 | . . . . . 14 . . . . . . 2 . . Impact 14 | . . . . . 14 . . . . . . . . . Slashing 2 | . . . . . . . . . . . . 2 . . Piercing . | . . . . . . . . . . . . . . . Sneak Attacks . | . . . . . . . . . . . . . . . Combat Hostiles . | . . . . . . . . . . . . . . . Follow-up Attacks . | . . . . . . . . . . . . . . . Damage Inflicted 1482 | 150 324 199 112 . 371 . . . . . . 109 110 107 Guns 755 | 150 176 199 88 . . . . . . . . 27 26 89 Cannons 166 | . . . . . . . . . . . . 82 84 . Explosions 228 | . 148 . . . 80 . . . . . . . . . Melee 291 | . . . . . 291 . . . . . . . . . Ramming . | . . . . . . . . . . . . . . . Kinetic 859 | 88 176 199 88 . . . . . . . . 109 110 89 Thermal 104 | 62 . . 24 . . . . . . . . . . 18 Explosive 80 | . . . . . 80 . . . . . . . . . Electromagnetic 148 | . 148 . . . . . . . . . . . . . Impact 291 | . . . . . 291 . . . . . . . . . Slashing . | . . . . . . . . . . . . . . . Piercing . | . . . . . . . . . . . . . . . Highest Corruption 2 | . 2 . . . . . . . . . . . . . Average Corruption 2 | . 2 . . . . . . . . . . . . . Corruption Purged . | . . . . . . . . . . . . . . . Corruption Blocked . | . . . . . . . . . . . . . . . Effects 1 | . 1 . . . . . . . . . . . . . Matter Fused 1 | . 1 . . . . . . . . . . . . . Overload Shots . | . . . . . . . . . . . . . . . Overflow Damage 75 | . . . . . 75 . . . . . . . . . Projectiles . | . . . . . . . . . . . . . . . Explosions . | . . . . . . . . . . . . . . . Melee 75 | . . . . . 75 . . . . . . . . . Knockbacks . | . . . . . . . . . . . . . . . Impact . | . . . . . . . . . . . . . . . Kinetic . | . . . . . . . . . . . . . . . Secondary . | . . . . . . . . . . . . . . . Self-Inflicted Damage 14 | . 14 . . . . . . . . . . . . . Shots 1 | . 1 . . . . . . . . . . . . . Rammed . | . . . . . . . . . . . . . . . Targets Rammed . | . . . . . . . . . . . . . . . Kicked . | . . . . . . . . . . . . . . . Crushed . | . . . . . . . . . . . . . . . Highest Temperature 154 | 27 40 8 36 17 1 . 3 . . . . 20 154 87 Average Temperature 30 | 11 20 4 14 9 1 . 3 . . . . 7 75 25 Received Heat Transfer 1104 | . . 96 81 99 48 . 228 . . . . 93 18 441 Siege Activations . | . . . . . . . . . . . . . . . Martial Activations . | . . . . . . . . . . . . . . . Shielding Activations . | . . . . . . . . . . . . . . . Robots Disrupted . | . . . . . . . . . . . . . . . Combat Hostiles . | . . . . . . . . . . . . . . . Robots Corrupted . | . . . . . . . . . . . . . . . Combat Hostiles . | . . . . . . . . . . . . . . . Parts Fried . | . . . . . . . . . . . . . . . Impact Corruptions 2 | . . . . . 2 . . . . . . . . . Robots Melted . | . . . . . . . . . . . . . . . Combat Hostiles . | . . . . . . . . . . . . . . . Parts Melted 1 | . . . . . . . . . . . . 1 . . Heat Transferred 272 | 185 . . 50 . . . . . . . . . . 37 Parts Sabotaged . | . . . . . . . . . . . . . . . Parts Stolen . | . . . . . . . . . . . . . . . Parts Stripped . | . . . . . . . . . . . . . . . Power Chain Reactions 1 | . 1 . . . . . . . . . . . . . Alert | -11 -10 -9 -9 -8 -7 -6 -6 -6 -5 -5 -5 -5 -5 -4 ------- Run | Yrd Mat Mat Sto Mat Fac Fac Low Low Fac Was Fac Upp Upp Fac Maximum Alert Level 1 | . . . . . . . . . . . 1 . . . Low Security (%) 96 | 100 100 100 100 100 100 100 . . 100 100 70 . . 100 Level 1 3 | . . . . . . . . . . . 29 . . . Level 2 . | . . . . . . . . . . . . . . . Level 3 . | . . . . . . . . . . . . . . . Level 4 . | . . . . . . . . . . . . . . . Level 5 . | . . . . . . . . . . . . . . . High Security . | . . . . . . . . . . . . . . . Max Security . | . . . . . . . . . . . . . . . Peak Influence 347 | 5 130 170 176 59 43 . . . 6 78 347 . . 25 Initial 71 | . . 49 71 44 21 . . . 6 . 12 . . . Average 39 | . 52 62 117 46 4 . . . . 38 111 . . 3 Influence Increases 2565 | 20 215 280 225 45 128 . 240 . . 128 497 664 24 99 Destroy 0b10 Robot/C 940 | . 140 120 100 . 80 . . . . . 120 320 20 40 Destroy 0b10 Robot/NC 60 | 20 15 . . . . . . . . . 25 . . . Destroy Leader 166 | . 12 40 20 . 10 . . . . . 34 40 . 10 Allied During Kill 468 | . . . . . . . . . . . 160 304 4 . Disable Machine 105 | . 45 . . . . . . . . . 60 . . . Destroy Structure 241 | . 3 . . . 8 . . . . 128 98 . . 4 Partial Spotted 105 | . . 15 45 15 15 . . . . . . . . 15 Lose Combat Pursuer 480 | . . 105 60 30 15 . 240 . . . . . . 30 Influence Decreases 2560 | 20 98 227 289 102 177 . 202 28 10 110 188 720 295 94 Entered New Map 450 | . . 68 99 62 28 . . 8 4 . 6 122 53 . Time Decay 1499 | 20 98 129 70 40 73 . 162 20 6 100 82 458 202 39 Lost Part 341 | . . 30 120 . 76 . 40 . . 10 . 10 . 55 Lost Ally 270 | . . . . . . . . . . . 100 130 40 . Squads Dispatched 8 | . . . 2 . 3 . . . . . 1 . . 2 Investigation 2 | . . . . . 2 . . . . . . . . . Extermination 2 | . . . . . 1 . . . . . . . . 1 Reinforcement 4 | . . . 2 . . . . . . . 1 . . 1 Assault . | . . . . . . . . . . . . . . . Garrison . | . . . . . . . . . . . . . . . Intercept . | . . . . . . . . . . . . . . . Searches Triggered . | . . . . . . . . . . . . . . . Construction Impeded . | . . . . . . . . . . . . . . . Haulers Reinforced . | . . . . . . . . . . . . . . . Active Scanning Responses . | . . . . . . . . . . . . . . . Cargo Convoy Interrupts . | . . . . . . . . . . . . . . . Stealth | -11 -10 -9 -9 -8 -7 -6 -6 -6 -5 -5 -5 -5 -5 -4 --------- Run | Yrd Mat Mat Sto Mat Fac Fac Low Low Fac Was Fac Upp Upp Fac Distress Signals 4 | . . 1 2 . 1 . . . . . . . . . Communications Jammed . | . . . . . . . . . . . . . . . Distress Signals . | . . . . . . . . . . . . . . . Times Spotted 134 | . 13 18 22 12 9 5 15 1 5 6 3 16 1 8 Peak Tracking Total 10 | . 7 7 10 9 4 5 9 1 5 2 3 5 1 6 Tactical Retreats 19 | . . 4 3 1 1 . 8 . . . . . . 2 Traps | -11 -10 -9 -9 -8 -7 -6 -6 -6 -5 -5 -5 -5 -5 -4 ------- Run | Yrd Mat Mat Sto Mat Fac Fac Low Low Fac Was Fac Upp Upp Fac Traps Triggered 11 | . 1 1 3 . 2 1 . . 1 . . . . 2 Indirectly . | . . . . . . . . . . . . . . . Trap Hack Attempts . | . . . . . . . . . . . . . . . Triggered . | . . . . . . . . . . . . . . . Disarmed . | . . . . . . . . . . . . . . . Reprogrammed . | . . . . . . . . . . . . . . . Reused . | . . . . . . . . . . . . . . . Traps Extracted . | . . . . . . . . . . . . . . . Installed . | . . . . . . . . . . . . . . . Triggered . | . . . . . . . . . . . . . . . Machines | -11 -10 -9 -9 -8 -7 -6 -6 -6 -5 -5 -5 -5 -5 -4 ---------- Run | Yrd Mat Mat Sto Mat Fac Fac Low Low Fac Was Fac Upp Upp Fac Machines Disabled 7 | . 3 . . . . . . . . . 4 . . . Max in Single Turn 2 | . 2 . . . . . . . . . . . . . Machines Repaired . | . . . . . . . . . . . . . . . Machines Dismantled . | . . . . . . . . . . . . . . . Machines Sabotaged . | . . . . . . . . . . . . . . . Overloaded Fab Kills . | . . . . . . . . . . . . . . . Hacking | -11 -10 -9 -9 -8 -7 -6 -6 -6 -5 -5 -5 -5 -5 -4 --------- Run | Yrd Mat Mat Sto Mat Fac Fac Low Low Fac Was Fac Upp Upp Fac Machines Accessed 12 | . 2 2 3 . 2 . 1 . . . . 1 1 . Terminals 8 | . 2 2 3 . . . . . . . . . 1 . Fabricators . | . . . . . . . . . . . . . . . Repair Stations . | . . . . . . . . . . . . . . . Recycling Units 1 | . . . . . 1 . . . . . . . . . Scanalyzers 1 | . . . . . 1 . . . . . . . . . Garrison Access . | . . . . . . . . . . . . . . . Total Hacks 21 | . 4 3 6 . 5 . 1 . . . . 1 1 . Successful 14 | . 2 3 2 . 4 . 1 . . . . 1 1 . Failed 7 | . 2 . 4 . 1 . . . . . . . . . Catastrophic . | . . . . . . . . . . . . . . . Database Lockouts . | . . . . . . . . . . . . . . . Manual 11 | . 4 2 5 . . . . . . . . . . . Terminals 14 | . 4 3 6 . . . . . . . . . 1 . Fabricators . | . . . . . . . . . . . . . . . Repair Stations . | . . . . . . . . . . . . . . . Recycling Units 4 | . . . . . 4 . . . . . . . . . Scanalyzers 1 | . . . . . 1 . . . . . . . . . Garrison Access . | . . . . . . . . . . . . . . . Terminal Hacks 5 | . . 1 1 . . . 1 . . . . 1 1 . Record 1 | . . . . . . . . . . . . . 1 . Open Door 2 | . . . . . . . 1 . . . . 1 . . Alert Level 2 | . . 1 1 . . . . . . . . . . . Fabricator Hacks . | . . . . . . . . . . . . . . . Repair Station Hacks . | . . . . . . . . . . . . . . . Recycling Unit Hacks 3 | . . . . . 3 . . . . . . . . . Recycle Component 1 | . . . . . 1 . . . . . . . . . Process 1 | . . . . . 1 . . . . . . . . . Report Inventory 1 | . . . . . 1 . . . . . . . . . Scanalyzer 1 | . . . . . 1 . . . . . . . . . Retrieve Study 1 | . . . . . 1 . . . . . . . . . Garrison Access Hacks . | . . . . . . . . . . . . . . . Unauthorized Hacks 5 | . 2 2 1 . . . . . . . . . . . Terminals 5 | . 2 2 1 . . . . . . . . . . . Botnet 5 | . 2 2 1 . . . . . . . . . . . Fabricators . | . . . . . . . . . . . . . . . Repair Stations . | . . . . . . . . . . . . . . . Recycling Units . | . . . . . . . . . . . . . . . Scanalyzers . | . . . . . . . . . . . . . . . Garrison Access . | . . . . . . . . . . . . . . . Data Cores Recovered . | . . . . . . . . . . . . . . . Used . | . . . . . . . . . . . . . . . Hacking Detections 4 | . 1 1 1 . 1 . . . . . . . . . Full Trace Events 1 | . . . . . 1 . . . . . . . . . Feedback Events . | . . . . . . . . . . . . . . . Feedback Blocked . | . . . . . . . . . . . . . . . Robot Schematics Acquired . | . . . . . . . . . . . . . . . Robots Built . | . . . . . . . . . . . . . . . Authchips . | . . . . . . . . . . . . . . . Time . | . . . . . . . . . . . . . . . Total Robot Build Rating . | . . . . . . . . . . . . . . . Part Schematics Acquired . | . . . . . . . . . . . . . . . Parts Built . | . . . . . . . . . . . . . . . Authchips . | . . . . . . . . . . . . . . . Time . | . . . . . . . . . . . . . . . Total Part Build Rating . | . . . . . . . . . . . . . . . Part Studies Acquired 1 | . . . . . 1 . . . . . . . . . Parts Repaired . | . . . . . . . . . . . . . . . Time . | . . . . . . . . . . . . . . . Parts Recycled 1 | . . . . . 1 . . . . . . . . . Recycled Matter 25 | . . . . . 25 . . . . . . . . . Retrieved Matter . | . . . . . . . . . . . . . . . Retrieved Components . | . . . . . . . . . . . . . . . Parts Scanalyzed . | . . . . . . . . . . . . . . . Part Schematics Acquired . | . . . . . . . . . . . . . . . Parts Damaged . | . . . . . . . . . . . . . . . Bothacking | -11 -10 -9 -9 -8 -7 -6 -6 -6 -5 -5 -5 -5 -5 -4 ------------ Run | Yrd Mat Mat Sto Mat Fac Fac Low Low Fac Was Fac Upp Upp Fac Used RIF Installer . | . . . . . . . . . . . . . . . Robots Hacked . | . . . . . . . . . . . . . . . Non-combat . | . . . . . . . . . . . . . . . Combat . | . . . . . . . . . . . . . . . Robot Hacks Applied . | . . . . . . . . . . . . . . . Relay Couplers Released . | . . . . . . . . . . . . . . . Fabnet Peak Effective % . | . . . . . . . . . . . . . . . Robots Rewired . | . . . . . . . . . . . . . . . Allies Hacked . | . . . . . . . . . . . . . . . Hacks Repelled . | . . . . . . . . . . . . . . . Allies | -11 -10 -9 -9 -8 -7 -6 -6 -6 -5 -5 -5 -5 -5 -4 -------- Run | Yrd Mat Mat Sto Mat Fac Fac Low Low Fac Was Fac Upp Upp Fac Total Allies 20 | . . . . . . . . . . 20 . . . . Largest Group 19 | . . . . . . . . . . 19 18 11 4 2 Highest-Rated Group 684 | . . . . . . . . . . 684 659 438 150 58 Highest-Rated Ally 50 | . . . . . . . . . . 50 50 50 46 29 Total Orders 4 | . . . . . . . . . . . . 4 . . ROAM 1 | . . . . . . . . . . . . 1 . . EXPLORE 3 | . . . . . . . . . . . . 3 . . Ally Attacks 342 | . . . . . . . . . . 134 87 102 19 . Total Damage 8777 | . . . . . . . . . . 3900 1600 2977 300 . Kills 34 | . . . . . . . . . . 7 12 15 . . Allies Corrupted 2 | . . . . . . . . . . . . 2 . . Allies Melted . | . . . . . . . . . . . . . . . Intel | -11 -10 -9 -9 -8 -7 -6 -6 -6 -5 -5 -5 -5 -5 -4 ------- Run | Yrd Mat Mat Sto Mat Fac Fac Low Low Fac Was Fac Upp Upp Fac Active Infowar (turns) 5234 | 17 419 309 145 95 488 190 761 49 117 241 379 1159 510 355 Optics 3941 | . . . 56 95 29 190 761 49 117 241 379 1159 510 355 Sensors 843 | . . 309 88 52 394 . . . . . . . . . Terrain 3870 | 17 419 227 98 31 486 . . . 49 241 379 1159 510 254 Traps 1782 | . . . . . . . . . . . . 1054 510 218 Machine Analysis 1785 | . . . . . . 134 761 49 117 241 379 104 . . Robot Analysis Total . | . . . . . . . . . . . . . . . Derelict Logs Recovered 4 | . . . . . . . 2 . . . . 1 1 . Drone Launches 3 | . . . . . . . . . . . . 3 . . Drone Recoveries . | . . . . . . . . . . . . . . . Exploration | -11 -10 -9 -9 -8 -7 -6 -6 -6 -5 -5 -5 -5 -5 -4 ------------- Run | Yrd Mat Mat Sto Mat Fac Fac Low Low Fac Was Fac Upp Upp Fac Turns Passed 5500 | 283 419 309 145 95 488 190 761 49 117 241 379 1159 510 355 Spaces Moved 5332 | 149 210 270 275 197 823 267 940 61 137 173 258 880 386 306 Core 130 | 10 . . 1 . 1 . . . . . . . . 118 Treads 466 | 139 210 117 . . . . . . . . . . . . Legs 1806 | . . . . . . . . . . 116 254 880 386 170 Wheels 8 | . . . . . . . . . . . . . . 8 Hover 1751 | . . . . . 285 267 940 61 137 57 4 . . . Flight 1171 | . . 153 274 197 537 . . . . . . . . 10 Fastest Speed 34 | 50 160 34 34 37 37 60 80 80 80 80 112 125 124 40 Average Speed 91 | 153 160 91 35 38 42 60 80 80 80 120 137 126 124 95 Slowest Speed 650 | 160 160 240 50 40 120 80 80 80 80 140 280 130 125 650 Overloaded Moves . | . . . . . . . . . . . . . . . Propulsion Burnouts . | . . . . . . . . . . . . . . . Robots Hopped . | . . . . . . . . . . . . . . . Potential Cave-ins . | . . . . . . . . . . . . . . . Cave-ins Triggered . | . . . . . . . . . . . . . . . Exploration Rate (%) 34 | 8 35 32 62 29 14 6 85 9 5 88 9 91 39 12 Regions Visited 14 Branch Regions 5 Pre-discovered Areas 1 | . . . 1 . . . . . . . . . . . Known Exits Taken 5 | . . 1 1 1 . . 1 . . . . . 1 . Unknown Exits Taken 7 | 1 1 . . . 1 1 . 1 . . 1 1 . . Scrap Searched 8 | . . . . . . . 2 1 . . . 3 2 . Spaces Dug 1 | . . . . . . . . . . . . 1 . . Terrain Destroyed 14 | . 2 . . . 8 . . . . . . 1 1 2 Melee 1 | . . . . . . . . . . . . 1 . . Projectile 3 | . . . . . . . . . . . . . 1 2 AOE 10 | . 2 . . . 8 . . . . . . . . . Terrain Rammed . | . . . . . . . . . . . . . . . Walls Destroyed . | . . . . . . . . . . . . . . . Machines Disabled . | . . . . . . . . . . . . . . . Actions | -11 -10 -9 -9 -8 -7 -6 -6 -6 -5 -5 -5 -5 -5 -4 --------- Run | Yrd Mat Mat Sto Mat Fac Fac Low Low Fac Was Fac Upp Upp Fac Total 5806 | 176 258 306 303 212 942 297 947 60 143 206 282 913 406 355 Wait 114 | . 7 . 1 . 59 3 . . . 21 10 5 8 . Move 5319 | 148 209 269 274 196 822 266 939 60 137 172 257 879 385 306 Hop . | . . . . . . . . . . . . . . . Pick Up 62 | 4 9 3 3 3 8 6 2 . 1 3 2 4 5 9 Fast Attach 65 | 7 . 7 6 7 7 2 4 . 3 2 5 6 2 7 Attach 35 | . . 5 8 1 5 1 1 . . 3 . 2 . 9 Detach 13 | . . 2 . 3 2 1 . . 1 . . 2 . 2 Swap 16 | 1 3 3 . 2 1 1 . . . 1 3 1 . . Drop 45 | . 3 5 . . 8 4 1 . 1 4 5 6 2 6 Fire 85 | 16 27 12 11 . 1 . . . . . . 6 4 8 Melee 16 | . . . . . 14 . . . . . . 2 . . Ram . | . . . . . . . . . . . . . . . Kick . | . . . . . . . . . . . . . . . Crush . | . . . . . . . . . . . . . . . Escape Stasis 36 | . . . . . 15 13 . . . . . . . 8 Rewire . | . . . . . . . . . . . . . . . Trap . | . . . . . . . . . . . . . . . Miscellaneous . | . . . . . . . . . . . . . . . Route ------- -11/Scrapyard -10/Materials -9/Materials -9/Storage -8/Materials -7/Factory -6/Factory -6/Lower Caves -6/Lower Caves -5/Factory -5/Waste -5/Factory -5/Upper Caves -5/Upper Caves -4/Factory (discovered 2 exits: Res / Upp) History --------- Turn | Location | Event 52 | -11/Scrapyard | Discovered new exit (range 15) 284 | -11/Scrapyard | Entered Materials 307 | -10/Materials | Build established: Mutant 550 | -10/Materials | Destroyed 7 combat bots 670 | -10/Materials | Discovered new exit (range 12) 703 | -10/Materials | Entered another Materials area 703 | -9/Materials | Evolved 2 slots: Utility x2 925 | -9/Materials | Lost 5 parts (1p2n2u) 1001 | -9/Materials | Discovered new exit (range 15) 1012 | -9/Materials | Identified exit to Storage 1012 | -9/Materials | Entered Storage 1079 | -9/Storage | Learned location of Armory (-4) 1092 | -9/Storage | Lost 3 parts (1n2w) 1129 | -9/Storage | Core integrity fell below 50% 1155 | -9/Storage | Discovered new exit (range 6) 1156 | -9/Storage | Identified exit to Materials 1157 | -9/Storage | Entered Materials 1157 | -8/Materials | Evolved 2 slots: Propulsion x1, Utility x1 1170 | -8/Materials | Lost 9 parts (2p3n2u2w) 1246 | -8/Materials | Discovered new exit (range 17) 1247 | -8/Materials | Build established: Scout 1252 | -8/Materials | Identified exit to Factory 1252 | -8/Materials | Entered Factory 1252 | -7/Factory | Evolved 2 slots: Propulsion x1, Utility x1 1706 | -7/Factory | Discovered new exit (range 16) 1726 | -7/Factory | Lost 11 parts (2p5n3u1w) 1740 | -7/Factory | Entered another Factory area 1740 | -6/Factory | Evolved 2 slots: Propulsion x1, Utility x1 1922 | -6/Factory | Discovered new exit (range 11) 1930 | -6/Factory | Entered Lower Caves 1931 | -6/Lower Caves | Encountered a Warlord checkpoint 2044 | -6/Lower Caves | Build established: Mutant 2156 | -6/Lower Caves | Learned location of 1 exit from Factory 2183 | -6/Lower Caves | Entered an active Warlord outpost 2493 | -6/Lower Caves | Build established: Gladiator 2671 | -6/Lower Caves | Identified exit to Lower Caves 2690 | -6/Lower Caves | Ambushed by wild Derelicts 2691 | -6/Lower Caves | Entered another Lower Caves area 2696 | -6/Lower Caves | Discovered new exit (range 13) 2705 | -6/Lower Caves | Spotted B-75 Beast 2740 | -6/Lower Caves | Entered Factory 2740 | -5/Factory | Evolved 2 slots: Power x1, Propulsion x1 2741 | -5/Factory | Identified exit to Factory 2857 | -5/Factory | Manually triggered Chute Trap 2857 | -5/Factory | Sucked down chute 2857 | -5/Factory | Entered Waste 2858 | -5/Waste | Met a frightened Derelict 2859 | -5/Waste | Spotted C-40 Crusher 2864 | -5/Waste | Spotted C-40 Crusher 2870 | -5/Waste | Spotted C-40 Crusher 2874 | -5/Waste | Spotted C-40 Crusher 2904 | -5/Waste | Warlord forces began an assault 2913 | -5/Waste | Allies destroyed C-40 Crusher 2915 | -5/Waste | Allies destroyed C-40 Crusher 2915 | -5/Waste | Spotted C-40 Crusher 2924 | -5/Waste | Allies destroyed C-40 Crusher 2936 | -5/Waste | Spotted C-40 Crusher 2945 | -5/Waste | Allies destroyed C-40 Crusher 2971 | -5/Waste | Allies destroyed C-40 Crusher 2978 | -5/Waste | Allies destroyed C-40 Crusher 3044 | -5/Waste | Discovered new exit (range 14) 3098 | -5/Waste | Entered Factory 3098 | -5/Factory | Accompanied by 18 allies 3230 | -5/Factory | Build established: Assassin 3279 | -5/Factory | Discovered new exit (range 19) 3370 | -5/Factory | Spotted B-75 Beast 3401 | -5/Factory | Lost 4 allies 3477 | -5/Factory | Entered Upper Caves 3477 | -5/Upper Caves | Accompanied by 11 allies 4058 | -5/Upper Caves | Learned 8 Factory zone layouts 4174 | -5/Upper Caves | Spotted B-75 Beast 4329 | -5/Upper Caves | Attracted the attention of an 0b10 outpost 4376 | -5/Upper Caves | Lost 4 allies 4406 | -5/Upper Caves | Discovered new exit (range 19) 4514 | -5/Upper Caves | Build established: Scavenger-Skirmisher 4636 | -5/Upper Caves | Entered another Upper Caves area 4636 | -5/Upper Caves | Accompanied by 4 allies 4655 | -5/Upper Caves | Learned Factory security intel 4905 | -5/Upper Caves | Discovered exit to Factory (range 9) 4906 | -5/Upper Caves | Attracted the attention of an 0b10 checkpoint 5146 | -5/Upper Caves | Entered Factory 5146 | -4/Factory | Accompanied by 2 allies 5146 | -4/Factory | Evolved 2 slots: Utility x1, Weapon x1 5147 | -4/Factory | Identified exit to Upper Caves 5147 | -4/Factory | Identified exit to Research 5209 | -4/Factory | Spotted B-86 Titan 5352 | -4/Factory | Spotted B-86 Titan 5432 | -4/Factory | Core integrity fell below 50% 5449 | -4/Factory | Core integrity fell below 20% 5473 | -4/Factory | Lost 19 parts (4p7n4u4w) 5501 | -4/Factory | Destroyed by H-71 Marshal with Heavy Mass Driver Last Messages --------------- 05442_ Imp. Recalibrator destroyed. 05442_ Field strength at 61. 05443_ Field strength at 55. 05444_ Field strength at 49. 05445_ Field strength at 43. 05446_ Field strength at 10. 05447_ Field strength at 4. 05448_ Stasis field depleted. 05451_ K-01 Serf cleans the Assembly Bed. 05452_ Acquired KE Penetrator. 05470_ ALERT: Potential suspicious activity detected, Programmers report to Factory Zone 2K. 05490_ Penetrated by Slug. 05490_ Knocked back. 05496_ Acquired Impulse Thruster. 05496_ ALERT: Hostiles spotted, dispatching reinforcements to Terminal F007. 05499_ K-01 Serf suffers critical hit (Blast). 05499_ K-01 Serf destroyed. 05501_ Mak. Utility Shielding blasted off. Map ----- +----------------------------------------------------+ | ??????###########????????????????????????????????? | | ?????????????????????????????????????????????????? | | ?????????????????????????????????????????????????? | | ?????????????????????????????????????????????????? | | ?????????????????????????????????????????????????? | | ?????????????????????????????????????????????????? | | ?????????????????????????????????????????????????? | | #######??????????????????????????????????????????? | | #??????????#####???????????????????????????? | | """ #??????????# ???????????????????????????? | | """ #??????????# ???????????????????????????? | | """ #??????????# ???????????????????????????? | | """ #??????????# ???????????????????????????? | | """ #??????????# ""???????????????????????????? | | """ #??????????# ""???????????????????????????? | | """ !#???????????????"""" # # #??# ??? | | """ #???????????????"""" # # #??###### ??? | | """ #????################# # ######### ??? | | #????# """"""""""" #?# # # # ??? | | #????# """"T"""" #?# # # # ??? | | #????# #?# # # + ??? | | ! #????# #?# ####### # ??? | | #????# ### ############### ??? | | ? ?##### ] # % # + ??? | | ###+####T ########+####### # """"""""" ##??? | | # % @ # #???? | | # % H + #???? | | # % % R # "" "" #???? | | # ##############+####### # ""T"" #???? | | # #????????????????? #?# # """ #???? | | + #????????????????? #?## ###############??? | | # #????????????????? #??# ??? | | # #????????????????? #??# ??? | | # #????????????????? #??# """"""""" """"""??? | | # #????????????????? #??# R ??? | | + #????????????????? #??# """"""""" """"""??? | | # #????????????????? #??# ??? | | # #?????????????????##??# """"""""" """"""??? | | # #?????????????????????# ??? | | # #?????????????????##### """"""""" ??? | | # #????????????????????????? ???????????????? | | # #????????????????????????? ""????????????????? | | # #????????????????????????? ????????????????? | | ?????????????????????????ss?????????????????? | | ??????????????????????????#?????????????????? | | T ????????????????????????????????????????????? | | "" ????????????????????????????????????????????? | | ????????????????????????????????????????????? | | ? ???????????????????????????????????????????? | | ??? ???????????????????????????????????????????? | +----------------------------------------------------+ Best States ------------- Heat Dissipation 59 Energy Generation 41 Energy Capacity 775 Matter Stores 700 Matter Capacity 700 Sight Range 22 Robot Scan Range 15 Terrain Scan Range 20 Terrain Scan Density 210 Additional Mass Support 6 Corruption Containment 12 Armor Coverage 225 Utility Shielding 15 Evasion (%) 64 Targeting Accuracy 5 Melee Accuracy 8 Recoil Reduction 2 Salvage Targeting 2 Item Schematics ----------------- None Robot Schematics ------------------ None Fabricated ------------ Nothing Repaired ---------- Nothing Studied --------- Airjet | -7/Factory | Hacked Alien Tech Used ----------------- None Achievements -------------- A Problem For Future Me Hydra Wheee! Challenges ------------ None Game ------ Seed TerrabombCargoPick Manual? 0 Play Time 01:23:04 Cumulative 78.0 hours Start 2025.11.07 @ 18:52:59 End 2025.11.09 @ 12:59:19 Sessions 11 Manual Loads 0 Difficulty Rogue Special Mode None Game No. 96 Rogue 96 Adventurer 0 Explorer 0 Win Type - Total 0 Types 0/0/0/0/0/0/0/0/0/0 Lore% 18 Gallery% 39 Achievement% 23 Wizard Run 0 Options --------- Layout 0 ASCII 0 Keyboard 0 Movement Mouse Keybinds 0 Fullscreen 1 Font 24/Smallcaps Map View 76x50 Zoom Use 0% Tactical HUD 1 Map Filters NONE Filters NONE Steam 1 RUN: d847833d-efe6-4e78-b8bf-389b770c0fa3